[Event "15th Governor Cup 2019"]
[Site "Khanty-Mansiysk"]
[Date "2019.11.22"]
[Round "6.14"]
[White "Obgolts, Erik"]
[Black "Chekletsov, Ilya"]
[Result "1/2-1/2"]
[ECO "B52"]
[WhiteElo "2371"]
[BlackElo "2386"]
[Annotator "ChessBase"]
[PlyCount "143"]
[EventDate "2019.11.19"]
[EventType "swiss"]
[EventCountry "RUS"]
[SourceTitle "playchess.com"]
[Source "ChessBase"]
[SourceQuality "1"]
[TimeControl "5400+30"]

1. e4 {[%emt 0:00:00]} c5 {[%emt 0:02:47]} 2. Nf3 {[%emt 0:00:00]} d6 {[%emt 0:00:06]} 3. Bb5+ {[%emt 0:00:00]} Bd7 {[%emt 0:00:03]} 4. c4 {[%emt 0:00:00]} e5 {[%emt 0:00:27]} 5. Bxd7+ {[%emt 0:00:42]} Nxd7 {[%emt 0:00:12]} 6. Nc3 {[%emt 0:00:04]} g6 {[%emt 0:00:12]} 7. d3 {[%emt 0:03:54]} Bh6 {[%emt 0:01:48]} 8. Bxh6 {[%emt 0:05:16]} Nxh6 {[%emt 0:00:06]} 9. Qd2 {[%emt 0:00:01]} Ng4 {[%emt 0:00:10]} 10. O-O {[%emt 0:00:22]} O-O {[%emt 0:00:30]} 11. Ne1 {[%emt 0:02:11]} Kg7 {[%emt 0:09:07]} 12. Nc2 {[%emt 0:02:29]} f5 {[%emt 0:05:01]} 13. exf5 {[%emt 0:01:56]} Rxf5 {[%emt 0:00:06]} 14. h3 {[%emt 0:01:15]} Nh6 {[%emt 0:03:26]} 15. Ne4 {[%emt 0:04:42]} Nf8 {[%emt 0:17:42]} 16. Ne3 {[%emt 0:07:33]} Rf7 {[%emt 0:00:06]} 17. f4 {[%emt 0:02:09]} exf4 {[%emt 0:15:06]} 18. Nd5 {[%emt 0:16:19]} Ne6 {[%emt 0:00:07]} 19. b4 {[%emt 0:01:49]} b6 {[%emt 0:01:25]} 20. Qb2+ {[%emt 0:01:52]} Nd4 {[%emt 0:06:37]} 21. Nxf4 {[%emt 0:03:10]} Qe7 {[%emt 0:00:32]} 22. Ne2 {[%emt 0:12:37]} Nhf5 {[%emt 0:09:17]} 23. g4 {[%emt 0:06:14]} Qe5 {[%emt 0:00:16]} 24. Nxd4 {[%emt 0:00:11]} Nxd4 {[%emt 0:00:27]} 25. Rxf7+ {[%emt 0:00:10]} Kxf7 {[%emt 0:00:04]} 26. Qf2+ {[%emt 0:01:36]} Kg7 {[%emt 0:00:10]} 27. Rf1 {[%emt 0:00:12]} Qe7 {[%emt 0:00:05]} 28. g5 {[%emt 0:03:58]} Rd8 {[%emt 0:06:00]} 29. h4 {[%emt 0:04:28]} d5 {[%emt 0:01:40]} 30. cxd5 {[%emt 0:00:13]} Rxd5 {[%emt 0:00:12]} 31. bxc5 {[%emt 0:00:22]} bxc5 {[%emt 0:00:05]} 32. Qf6+ {[%emt 0:02:39]} Qxf6 {[%emt 0:00:07]} 33. gxf6+ {[%emt 0:00:03]} Kf8 {[%emt 0:00:09]} 34. Rb1 {[%emt 0:00:46]} Nf3+ {[%emt 0:04:22]} 35. Kf1 {[%emt 0:06:21]} Nxh4 {[%emt 0:05:43]} 36. Rb8+ {[%emt 0:00:14]} Kf7 {[%emt 0:00:04]} 37. Rb7+ {[%emt 0:00:06]} Kf8 {[%emt 0:00:08]} 38. Rxh7 {[%emt 0:01:26]} Nf3 {[%emt 0:00:06]} 39. Rxa7 {[%emt 0:02:42]} Ng5 {[%emt 0:05:23]} 40. Ke2 {[%emt 0:04:07]} Re5 {[%emt 0:00:10]} 41. Ke3 {[%emt 0:02:34]} Nxe4 {[%emt 0:00:12]} 42. dxe4 {[%emt 0:00:04]} Re6 {[%emt 0:00:19]} 43. a4 {[%emt 0:02:41]} Rxf6 {[%emt 0:01:19]} 44. a5 {[%emt 0:00:02]} Ke8 {[%emt 0:00:47]} 45. Rc7 {[%emt 0:01:06]} g5 {[%emt 0:02:11]} 46. Rxc5 {[%emt 0:00:04]} g4 {[%emt 0:00:04]} 47. Rg5 {[%emt 0:01:57]} Rf3+ {[%emt 0:00:04]} 48. Kd4 {[%emt 0:00:21]} Ra3 {[%emt 0:00:08]} 49. Kc4 {[%emt 0:00:36]} Kd7 {[%emt 0:01:16]} 50. Kb4 {[%emt 0:00:14]} Rg3 {[%emt 0:00:05]} 51. Kc5 {[%emt 0:00:56]} Rc3+ {[%emt 0:00:08]} 52. Kb6 {[%emt 0:00:24]} Rb3+ {[%emt 0:00:04]} 53. Kc5 {[%emt 0:00:42]} Rc3+ {[%emt 0:00:06]} 54. Kb4 {[%emt 0:00:15]} Rg3 {[%emt 0:00:05]} 55. e5 {[%emt 0:00:23]} Rg1 {[%emt 0:02:10]} 56. a6 {[%emt 0:00:16]} Rb1+ {[%emt 0:01:46]} 57. Kc5 {[%emt 0:00:06]} Rc1+ {[%emt 0:00:05]} 58. Kd5 {[%emt 0:00:09]} Rd1+ {[%emt 0:00:05]} 59. Ke4 {[%emt 0:00:17]} Ra1 {[%emt 0:00:12]} 60. Rg6 {[%emt 0:01:43]} Ke7 {[%emt 0:01:30]} 61. Kf4 {[%emt 0:00:57]} Ra4+ {[%emt 0:00:09]} 62. Kf5 {[%emt 0:00:03]} g3 {[%emt 0:02:07]} 63. a7 {[%emt 0:00:34]} Kf8 {[%emt 0:01:33]} 64. e6 {[%emt 0:00:49]} Rxa7 {[%emt 0:00:10]} 65. Kf6 {[%emt 0:00:29]} g2 {[%emt 0:00:28]} 66. Rxg2 {[%emt 0:00:15]} Rf7+ {[%emt 0:00:04]} 67. Ke5 {[%emt 0:00:12]} Rf1 {[%emt 0:00:06]} 68. Rd2 {[%emt 0:01:00]} Ke7 {[%emt 0:00:18]} 69. Rd7+ {[%emt 0:00:04]} Ke8 {[%emt 0:00:03]} 70. Rd4 {[%emt 0:00:49]} Ke7 {[%emt 0:00:08]} 71. Rd7+ {[%emt 0:00:16]} Ke8 {[%emt 0:00:05]} 72. Ra7 {[%emt 0:00:18]} 1/2-1/2

[Event "15th Governor Cup 2019"]
[Site "Khanty-Mansiysk"]
[Date "2019.11.22"]
[Round "6.15"]
[White "Chinguun, Sumiya"]
[Black "Zakaryan, David"]
[Result "0-1"]
[ECO "C18"]
[WhiteElo "2307"]
[BlackElo "2338"]
[Annotator "ChessBase"]
[PlyCount "90"]
[EventDate "2019.11.19"]
[EventType "swiss"]
[EventCountry "RUS"]
[SourceTitle "playchess.com"]
[Source "ChessBase"]
[SourceQuality "1"]
[TimeControl "5400+30"]

1. e4 {[%emt 0:00:00]} e6 {[%emt 0:00:00]} 2. d4 {[%emt 0:00:00]} d5 {[%emt 0:00:00]} 3. Nc3 {[%emt 0:00:00]} Bb4 {[%emt 0:00:00]} 4. e5 {[%emt 0:00:02]} c5 {[%emt 0:00:00]} 5. a3 {[%emt 0:00:04]} Bxc3+ {[%emt 0:00:03]} 6. bxc3 {[%emt 0:00:34]} Qc7 {[%emt 0:00:10]} 7. Qg4 {[%emt 0:00:48]} f6 {[%emt 0:00:02]} 8. Nf3 {[%emt 0:06:24]} Nc6 {[%emt 0:03:45]} 9. Bb5 {[%emt 0:06:51]} c4 {[%emt 0:04:41]} 10. O-O {[%emt 0:01:20]} Qf7 {[%emt 0:04:11]} 11. Qh4 {[%emt 0:02:54]} Bd7 {[%emt 0:02:51]} 12. exf6 {[%emt 0:01:22]} gxf6 {[%emt 0:00:40]} 13. Re1 {[%emt 0:01:34]} Nge7 {[%emt 0:00:12]} 14. Qf4 {[%emt 0:04:33]} Rg8 {[%emt 0:03:33]} 15. Rb1 {[%emt 0:05:37]} O-O-O {[%emt 0:06:03]} 16. g3 {[%emt 0:05:29]} Qh5 {[%emt 0:07:18]} 17. Bxc6 {[%emt 0:07:47]} Nxc6 {[%emt 0:00:31]} 18. a4 {[%emt 0:00:51]} Rge8 {[%emt 0:09:01]} 19. Ba3 {[%emt 0:01:27]} e5 {[%emt 0:01:31]} 20. dxe5 {[%emt 0:01:20]} fxe5 {[%emt 0:00:11]} 21. Qe3 {[%emt 0:00:24]} d4 {[%emt 0:06:44]} 22. cxd4 {[%emt 0:01:25]} exd4 {[%emt 0:01:05]} 23. Qf4 {[%emt 0:00:14]} Qf5 {[%emt 0:00:25]} 24. Bd6 {[%emt 0:04:07]} Qxf4 {[%emt 0:00:19]} 25. Bxf4 {[%emt 0:00:06]} Bf5 {[%emt 0:00:17]} 26. Bg5 {[%emt 0:17:05]} Rxe1+ {[%emt 0:01:57]} 27. Nxe1 {[%emt 0:04:41]} Re8 {[%emt 0:01:54]} 28. Rc1 {[%emt 0:00:14]} c3 {[%emt 0:00:16]} 29. Bf6 {[%emt 0:00:49]} Re6 {[%emt 0:01:21]} 30. Bg7 {[%emt 0:00:35]} a5 {[%emt 0:07:59]} 31. Nf3 {[%emt 0:02:44]} Rd6 {[%emt 0:00:23]} 32. Ne5 {[%emt 0:00:31]} Kc7 {[%emt 0:04:12]} 33. g4 {[%emt 0:01:24]} Bxg4 {[%emt 0:00:51]} 34. f4 {[%emt 0:01:38]} Bf5 {[%emt 0:00:33]} 35. Kf2 {[%emt 0:01:19]} Nb4 {[%emt 0:01:05]} 36. Nc4 {[%emt 0:00:48]} Rd5 {[%emt 0:00:33]} 37. Na3 {[%emt 0:01:36]} Bxc2 {[%emt 0:01:47]} 38. Rxc2 {[%emt 0:00:46]} Nxc2 {[%emt 0:00:06]} 39. Nxc2 {[%emt 0:00:09]} d3 {[%emt 0:00:15]} 40. Ne3 {[%emt 0:00:07]} c2 {[%emt 0:00:19]} 41. Nxd5+ {[%emt 0:00:36]} Kd6 {[%emt 0:00:37]} 42. Nc3 {[%emt 0:02:38]} c1=Q {[%emt 0:00:13]} 43. Be5+ {[%emt 0:00:04]} Ke6 {[%emt 0:00:14]} 44. Bd4 {[%emt 0:00:47]} Qxf4+ {[%emt 0:00:12]} 45. Ke1 {[%emt 0:00:06]} Qxd4 {[%emt 0:00:10]} 0-1

[Event "15th Governor Cup 2019"]
[Site "Khanty-Mansiysk"]
[Date "2019.11.22"]
[Round "6.16"]
[White "Belyakov, Bogdan"]
[Black "Skatchkov, Valery"]
[Result "1-0"]
[ECO "C55"]
[WhiteElo "2495"]
[BlackElo "2309"]
[Annotator "ChessBase"]
[PlyCount "47"]
[EventDate "2019.11.19"]
[EventType "swiss"]
[EventCountry "RUS"]
[SourceTitle "playchess.com"]
[Source "ChessBase"]
[SourceQuality "1"]
[TimeControl "5400+30"]

1. e4 {[%emt 0:01:31]} e5 {[%emt 0:00:00]} 2. d4 {[%emt 0:00:04]} exd4 {[%emt 0:00:00]} 3. Nf3 {[%emt 0:00:12]} Nc6 {[%emt 0:00:30]} 4. Bc4 {[%emt 0:00:08]} Nf6 {[%emt 0:09:31]} 5. e5 {[%emt 0:00:44]} d5 {[%emt 0:00:47]} 6. Bb5 {[%emt 0:00:07]} Ne4 {[%emt 0:02:42]} 7. Nxd4 {[%emt 0:00:08]} Bd7 {[%emt 0:03:26]} 8. Bxc6 {[%emt 0:00:12]} bxc6 {[%emt 0:01:15]} 9. O-O {[%emt 0:00:08]} Be7 {[%emt 0:15:16]} 10. f3 {[%emt 0:02:15]} Nc5 {[%emt 0:01:40]} 11. f4 {[%emt 0:00:16]} Ne4 {[%emt 0:08:38]} 12. Nc3 {[%emt 0:06:12]} Nxc3 {[%emt 0:05:33]} 13. bxc3 {[%emt 0:00:06]} g6 {[%emt 0:12:49]} 14. f5 {[%emt 0:04:38]} c5 {[%emt 0:04:19]} 15. e6 {[%emt 0:05:06]} cxd4 {[%emt 0:00:39]} 16. Qxd4 {[%emt 0:10:43]} f6 {[%emt 0:00:05]} 17. Qxd5 {[%emt 0:11:44]} Ba4 {[%emt 0:00:05]} 18. Qe4 {[%emt 0:04:12]} Bb5 {[%emt 0:00:01]} 19. c4 {[%emt 0:00:19]} Ba4 {[%emt 0:01:06]} 20. fxg6 {[%emt 0:01:02]} f5 {[%emt 0:02:23]} 21. Rxf5 {[%emt 0:04:20]} Bf6 {[%emt 0:10:09]} 22. Rxf6 {[%emt 0:00:49]} Qxf6 {[%emt 0:00:09]} 23. Qxa8+ {[%emt 0:00:07]} Ke7 {[%emt 0:00:25]} 24. Ba3+ {[%emt 0:00:06]} 1-0

[Event "15th Governor Cup 2019"]
[Site "Khanty-Mansiysk"]
[Date "2019.11.22"]
[Round "6.17"]
[White "Najdin, Danil"]
[Black "Shafigullina, Zarina"]
[Result "1-0"]
[ECO "E07"]
[WhiteElo "2357"]
[BlackElo "2295"]
[Annotator "ChessBase"]
[PlyCount "99"]
[EventDate "2019.11.19"]
[EventType "swiss"]
[EventCountry "RUS"]
[SourceTitle "playchess.com"]
[Source "ChessBase"]
[SourceQuality "1"]
[TimeControl "5400+30"]

1. d4 {[%emt 0:00:00]} Nf6 {[%emt 0:00:00]} 2. c4 {[%emt 0:00:00]} e6 {[%emt 0:00:00]} 3. g3 {[%emt 0:01:12]} d5 {[%emt 0:01:10]} 4. Bg2 {[%emt 0:00:17]} Be7 {[%emt 0:00:10]} 5. Nf3 {[%emt 0:00:18]} O-O {[%emt 0:00:37]} 6. O-O {[%emt 0:00:22]} Nbd7 {[%emt 0:01:10]} 7. Nc3 {[%emt 0:02:31]} dxc4 {[%emt 0:01:15]} 8. e4 {[%emt 0:04:02]} Nb6 {[%emt 0:02:59]} 9. Qe2 {[%emt 0:04:01]} c5 {[%emt 0:10:33]} 10. Rd1 {[%emt 0:02:18]} cxd4 {[%emt 0:02:31]} 11. Nxd4 {[%emt 0:01:27]} Bd7 {[%emt 0:05:24]} 12. Bf4 {[%emt 0:02:36]} Bc5 {[%emt 0:04:27]} 13. Ndb5 {[%emt 0:05:33]} Qe7 {[%emt 0:01:48]} 14. Bd6 {[%emt 0:02:14]} Bxd6 {[%emt 0:00:15]} 15. Nxd6 {[%emt 0:00:04]} Bc6 {[%emt 0:00:31]} 16. e5 {[%emt 0:00:59]} Nfd5 {[%emt 0:00:32]} 17. Nce4 {[%emt 0:02:04]} f5 {[%emt 0:13:03]} 18. exf6 {[%emt 0:01:48]} gxf6 {[%emt 0:00:05]} 19. Nxc4 {[%emt 0:00:56]} Rad8 {[%emt 0:04:34]} 20. Na5 {[%emt 0:01:03]} Ba4 {[%emt 0:01:34]} 21. b3 {[%emt 0:00:47]} Be8 {[%emt 0:00:10]} 22. Rac1 {[%emt 0:00:33]} Rc8 {[%emt 0:03:57]} 23. Rxc8 {[%emt 0:04:24]} Nxc8 {[%emt 0:00:06]} 24. Rc1 {[%emt 0:01:35]} Bf7 {[%emt 0:04:41]} 25. Nxb7 {[%emt 0:03:11]} f5 {[%emt 0:04:36]} 26. Nec5 {[%emt 0:01:43]} Ncb6 {[%emt 0:00:26]} 27. Qe5 {[%emt 0:03:35]} Rc8 {[%emt 0:02:28]} 28. Nd6 {[%emt 0:02:01]} Rc7 {[%emt 0:01:42]} 29. Bxd5 {[%emt 0:01:47]} Nxd5 {[%emt 0:04:29]} 30. Rc4 {[%emt 0:02:09]} Nf6 {[%emt 0:06:30]} 31. Rb4 {[%emt 0:05:18]} h5 {[%emt 0:01:41]} 32. Rb8+ {[%emt 0:01:32]} Kh7 {[%emt 0:00:14]} 33. b4 {[%emt 0:01:33]} Kg6 {[%emt 0:02:32]} 34. Nb5 {[%emt 0:02:25]} Rc6 {[%emt 0:00:07]} 35. Nd4 {[%emt 0:01:02]} Rc7 {[%emt 0:02:31]} 36. Ndxe6 {[%emt 0:00:47]} Bxe6 {[%emt 0:00:11]} 37. Nxe6 {[%emt 0:00:34]} Rc6 {[%emt 0:01:49]} 38. Nf4+ {[%emt 0:01:09]} Kf7 {[%emt 0:00:05]} 39. Qxf5 {[%emt 0:01:05]} Rc1+ {[%emt 0:01:29]} 40. Kg2 {[%emt 0:00:02]} Qe4+ {[%emt 0:00:20]} 41. Qxe4 {[%emt 0:00:06]} Nxe4 {[%emt 0:00:04]} 42. Rb7+ {[%emt 0:00:25]} Kg8 {[%emt 0:00:29]} 43. Rxa7 {[%emt 0:02:03]} Rc2 {[%emt 0:00:05]} 44. Kf3 {[%emt 0:00:13]} Nxf2 {[%emt 0:00:22]} 45. Nxh5 {[%emt 0:00:22]} Nd3 {[%emt 0:00:06]} 46. b5 {[%emt 0:00:21]} Rxh2 {[%emt 0:00:06]} 47. Nf6+ {[%emt 0:00:06]} Kf8 {[%emt 0:00:03]} 48. b6 {[%emt 0:00:21]} Rf2+ {[%emt 0:00:08]} 49. Ke3 {[%emt 0:00:09]} Rxf6 {[%emt 0:00:06]} 50. b7 {[%emt 0:00:05]} 1-0

[Event "15th Governor Cup 2019"]
[Site "Khanty-Mansiysk"]
[Date "2019.11.22"]
[Round "6.18"]
[White "Yakimova, Mariya"]
[Black "Semenova, Elena"]
[Result "1-0"]
[ECO "D23"]
[WhiteElo "2276"]
[BlackElo "2282"]
[Annotator "ChessBase"]
[PlyCount "99"]
[EventDate "2019.11.19"]
[EventType "swiss"]
[EventCountry "RUS"]
[SourceTitle "playchess.com"]
[Source "ChessBase"]
[SourceQuality "1"]
[TimeControl "5400+30"]

1. d4 {[%emt 0:00:00]} d5 {[%emt 0:00:00]} 2. c4 {[%emt 0:00:00]} dxc4 {[%emt 0:00:00]} 3. Nf3 {[%emt 0:00:00]} Nf6 {[%emt 0:00:00]} 4. Qa4+ {[%emt 0:00:10]} Nc6 {[%emt 0:00:17]} 5. Qxc4 {[%emt 0:03:15]} Bf5 {[%emt 0:00:57]} 6. g3 {[%emt 0:02:02]} e6 {[%emt 0:00:10]} 7. Bg2 {[%emt 0:00:14]} Be7 {[%emt 0:00:49]} 8. O-O {[%emt 0:00:47]} O-O {[%emt 0:00:05]} 9. Nc3 {[%emt 0:02:13]} Ne4 {[%emt 0:10:11]} 10. Bf4 {[%emt 0:02:19]} g5 {[%emt 0:04:47]} 11. Be3 {[%emt 0:01:11]} Nxc3 {[%emt 0:15:17]} 12. Qxc3 {[%emt 0:03:10]} Be4 {[%emt 0:01:39]} 13. Rac1 {[%emt 0:05:07]} Qd5 {[%emt 0:07:01]} 14. Qb3 {[%emt 0:09:02]} Qxb3 {[%emt 0:02:31]} 15. axb3 {[%emt 0:00:06]} f6 {[%emt 0:04:21]} 16. Nd2 {[%emt 0:09:00]} Bxg2 {[%emt 0:00:19]} 17. Kxg2 {[%emt 0:00:05]} f5 {[%emt 0:06:56]} 18. Nf3 {[%emt 0:01:53]} h6 {[%emt 0:03:07]} 19. Ne5 {[%emt 0:05:08]} Nxe5 {[%emt 0:03:51]} 20. dxe5 {[%emt 0:00:06]} c6 {[%emt 0:02:20]} 21. Ra1 {[%emt 0:00:04]} Rfd8 {[%emt 0:01:49]} 22. Bxa7 {[%emt 0:04:02]} Rd5 {[%emt 0:02:04]} 23. Be3 {[%emt 0:03:33]} Rxa1 {[%emt 0:07:44]} 24. Rxa1 {[%emt 0:00:07]} Rb5 {[%emt 0:00:13]} 25. Ra8+ {[%emt 0:00:09]} Kf7 {[%emt 0:00:12]} 26. Bd4 {[%emt 0:09:12]} Rxb3 {[%emt 0:00:26]} 27. h3 {[%emt 0:01:34]} Rb5 {[%emt 0:03:06]} 28. Kf3 {[%emt 0:03:25]} Rd5 {[%emt 0:03:57]} 29. Bc3 {[%emt 0:00:09]} h5 {[%emt 0:03:34]} 30. Rh8 {[%emt 0:06:15]} g4+ {[%emt 0:08:20]} 31. Kf4 {[%emt 0:07:38]} b5 {[%emt 0:05:00]} 32. hxg4 {[%emt 0:11:19]} b4 {[%emt 0:01:54]} 33. Rh7+ {[%emt 0:00:45]} Kf8 {[%emt 0:00:14]} 34. gxf5 {[%emt 0:00:43]} bxc3 {[%emt 0:00:26]} 35. bxc3 {[%emt 0:00:03]} exf5 {[%emt 0:01:00]} 36. Kxf5 {[%emt 0:00:08]} Rd2 {[%emt 0:00:40]} 37. Ke6 {[%emt 0:02:54]} Bc5 {[%emt 0:00:08]} 38. f4 {[%emt 0:01:28]} Rxe2 {[%emt 0:01:29]} 39. Rc7 {[%emt 0:05:36]} Bf2 {[%emt 0:00:27]} 40. Kf6 {[%emt 0:00:26]} Ke8 {[%emt 0:00:56]} 41. e6 {[%emt 0:00:11]} Kd8 {[%emt 0:01:00]} 42. Rd7+ {[%emt 0:02:19]} Kc8 {[%emt 0:00:08]} 43. Rd3 {[%emt 0:00:55]} h4 {[%emt 0:00:58]} 44. g4 {[%emt 0:00:12]} Bc5 {[%emt 0:01:05]} 45. f5 {[%emt 0:00:50]} Ba3 {[%emt 0:00:31]} 46. Kf7 {[%emt 0:00:25]} Rg2 {[%emt 0:00:28]} 47. f6 {[%emt 0:01:28]} Rxg4 {[%emt 0:00:13]} 48. e7 {[%emt 0:00:07]} Bxe7 {[%emt 0:00:08]} 49. fxe7 {[%emt 0:00:08]} Rf4+ {[%emt 0:00:03]} 50. Kg6 {[%emt 0:00:09]} 1-0

[Event "15th Governor Cup 2019"]
[Site "Khanty-Mansiysk"]
[Date "2019.11.22"]
[Round "6.19"]
[White "Mukhina, Jana"]
[Black "Martynyuk, Elizaveta"]
[Result "1-0"]
[ECO "D18"]
[WhiteElo "2105"]
[BlackElo "2020"]
[Annotator "ChessBase"]
[PlyCount "71"]
[EventDate "2019.11.19"]
[EventType "swiss"]
[EventCountry "RUS"]
[SourceTitle "playchess.com"]
[Source "ChessBase"]
[SourceQuality "1"]
[TimeControl "5400+30"]

1. d4 {[%emt 0:00:00]} d5 {[%emt 0:00:58]} 2. c4 {[%emt 0:00:40]} c6 {[%emt 0:00:05]} 3. Nf3 {[%emt 0:00:21]} Nf6 {[%emt 0:00:07]} 4. Nc3 {[%emt 0:00:04]} dxc4 {[%emt 0:00:06]} 5. a4 {[%emt 0:00:03]} Bf5 {[%emt 0:00:16]} 6. e3 {[%emt 0:00:04]} e6 {[%emt 0:00:10]} 7. Bxc4 {[%emt 0:00:04]} Bb4 {[%emt 0:00:26]} 8. O-O {[%emt 0:00:23]} O-O {[%emt 0:00:05]} 9. Qb3 {[%emt 0:00:10]} Qe7 {[%emt 0:02:07]} 10. Ne5 {[%emt 0:03:09]} a5 {[%emt 0:05:33]} 11. f3 {[%emt 0:00:34]} Na6 {[%emt 0:09:08]} 12. e4 {[%emt 0:14:46]} Bg6 {[%emt 0:00:11]} 13. Bg5 {[%emt 0:03:05]} c5 {[%emt 0:01:45]} 14. Nxg6 {[%emt 0:00:57]} hxg6 {[%emt 0:00:07]} 15. e5 {[%emt 0:00:33]} cxd4 {[%emt 0:00:14]} 16. Ne4 {[%emt 0:05:20]} Nc5 {[%emt 0:06:39]} 17. exf6 {[%emt 0:04:59]} Qc7 {[%emt 0:08:01]} 18. Nxc5 {[%emt 0:03:46]} Qxc5 {[%emt 0:02:46]} 19. f4 {[%emt 0:00:01]} d3+ {[%emt 0:01:17]} 20. Kh1 {[%emt 0:00:13]} d2 {[%emt 0:00:07]} 21. Qh3 {[%emt 0:04:27]} Qd4 {[%emt 0:00:16]} 22. fxg7 {[%emt 0:01:00]} Qxg7 {[%emt 0:07:04]} 23. Qh4 {[%emt 0:05:48]} Rac8 {[%emt 0:03:13]} 24. Bf6 {[%emt 0:00:33]} Rxc4 {[%emt 0:00:06]} 25. Bxg7 {[%emt 0:00:18]} Kxg7 {[%emt 0:00:06]} 26. Rad1 {[%emt 0:02:35]} Rfc8 {[%emt 0:00:06]} 27. Qf2 {[%emt 0:02:57]} Rc2 {[%emt 0:02:48]} 28. g4 {[%emt 0:02:34]} f6 {[%emt 0:00:37]} 29. Qb6 {[%emt 0:02:07]} R8c7 {[%emt 0:01:17]} 30. g5 {[%emt 0:04:04]} Re7 {[%emt 0:00:52]} 31. gxf6+ {[%emt 0:07:09]} Kxf6 {[%emt 0:01:14]} 32. Qd4+ {[%emt 0:00:01]} Kf7 {[%emt 0:00:24]} 33. Qe4 {[%emt 0:01:00]} Rc5 {[%emt 0:01:32]} 34. Rg1 {[%emt 0:01:48]} Rf5 {[%emt 0:00:07]} 35. Qg2 {[%emt 0:00:38]} Rf6 {[%emt 0:00:09]} 36. Rxd2 {[%emt 0:03:33]} 1-0

[Event "15th Governor Cup 2019"]
[Site "Khanty-Mansiysk"]
[Date "2019.11.22"]
[Round "6.20"]
[White "Dorofeeva, Nyurguiaana"]
[Black "Mironenko, Galina"]
[Result "0-1"]
[ECO "A46"]
[WhiteElo "1848"]
[BlackElo "2236"]
[Annotator "ChessBase"]
[PlyCount "88"]
[EventDate "2019.11.19"]
[EventType "swiss"]
[EventCountry "RUS"]
[SourceTitle "playchess.com"]
[Source "ChessBase"]
[SourceQuality "1"]
[TimeControl "5400+30"]

1. d4 {[%emt 0:00:00]} Nf6 {[%emt 0:00:00]} 2. Nf3 {[%emt 0:00:00]} e6 {[%emt 0:00:02]} 3. Bf4 {[%emt 0:00:00]} b6 {[%emt 0:00:45]} 4. e3 {[%emt 0:00:20]} Bb7 {[%emt 0:00:37]} 5. Nbd2 {[%emt 0:00:34]} Be7 {[%emt 0:00:29]} 6. Bd3 {[%emt 0:00:53]} Nh5 {[%emt 0:06:06]} 7. Bg3 {[%emt 0:06:06]} d6 {[%emt 0:02:52]} 8. c4 {[%emt 0:04:20]} Nd7 {[%emt 0:07:23]} 9. Qb1 {[%emt 0:04:52]} h6 10. b4 Nxg3 {[%emt 0:01:58]} 11. hxg3 {[%emt 0:00:36]} c5 {[%emt 0:03:58]} 12. a3 {[%emt 0:16:12]} Qc7 {[%emt 0:06:23]} 13. g4 {[%emt 0:03:09]} O-O-O {[%emt 0:14:30]} 14. Be4 {[%emt 0:05:48]} Nf6 {[%emt 0:04:06]} 15. Bxb7+ {[%emt 0:02:50]} Qxb7 {[%emt 0:00:52]} 16. dxc5 {[%emt 0:13:52]} dxc5 {[%emt 0:01:52]} 17. Ne5 {[%emt 0:00:34]} Qxg2 {[%emt 0:05:42]} 18. Rf1 {[%emt 0:00:19]} Rxd2 {[%emt 0:11:06]} 19. Kxd2 {[%emt 0:01:47]} Ne4+ {[%emt 0:00:30]} 20. Ke1 {[%emt 0:07:45]} Bf6 {[%emt 0:03:43]} 21. Nxf7 {[%emt 0:01:12]} Bc3+ {[%emt 0:05:30]} 22. Ke2 {[%emt 0:00:09]} Qxg4+ {[%emt 0:06:27]} 23. f3 {[%emt 0:10:33]} Ng3+ {[%emt 0:05:42]} 24. Kd3 {[%emt 0:01:33]} Qf5+ {[%emt 0:01:01]} 25. Kxc3 {[%emt 0:00:31]} Qxf7 {[%emt 0:00:24]} 26. Rf2 {[%emt 0:00:41]} Qf6+ {[%emt 0:01:18]} 27. Kb3 {[%emt 0:01:20]} Rd8 {[%emt 0:01:26]} 28. Raa2 {[%emt 0:02:53]} Qe5 {[%emt 0:01:15]} 29. e4 {[%emt 0:01:51]} Qf4 {[%emt 0:01:36]} 30. Ka4 {[%emt 0:04:24]} Rd4 {[%emt 0:03:34]} 31. Qb3 {[%emt 0:03:01]} a6 {[%emt 0:01:47]} 32. Qc3 {[%emt 0:00:29]} Qd6 {[%emt 0:02:34]} 33. Rfd2 {[%emt 0:01:59]} Qd7+ {[%emt 0:00:30]} 34. Kb3 {[%emt 0:00:14]} e5 {[%emt 0:00:26]} 35. bxc5 {[%emt 0:03:21]} bxc5 {[%emt 0:00:30]} 36. Qa5 {[%emt 0:00:20]} Rd3+ {[%emt 0:00:34]} 37. Rxd3 {[%emt 0:00:16]} Qxd3+ {[%emt 0:00:06]} 38. Qc3 {[%emt 0:00:34]} Qd1+ {[%emt 0:00:26]} 39. Kb2 {[%emt 0:01:42]} Ne2 {[%emt 0:00:34]} 40. Qc2 {[%emt 0:01:50]} Qd4+ {[%emt 0:00:18]} 41. Kb3 {[%emt 0:00:10]} Qe3+ {[%emt 0:00:21]} 42. Kb2 {[%emt 0:01:20]} Nd4 {[%emt 0:00:26]} 43. Qd1 {[%emt 0:00:23]} Nxf3 {[%emt 0:00:43]} 44. Ka1 Qxe4 0-1